lending/lending_fUSD_20250224
["ID","MTS","AMOUNT","RATE_DAILY","PERIOD"]
[354280908,1740393050513,-500.0,0.00016438,2]
[354280909,1740393050523,-500.0,0.00016438,2]
[354280910,1740393050533,-502.16038106,0.00016438,2]
[354280911,1740393050543,-500.0,0.00016438,2]
[354280912,1740393050558,-614.79,0.00016438,2]
[354280913,1740393050567,-500.0,0.00016438,2]
[354280914,1740393050577,-500.0,0.00016438,2]
[354280915,1740393050586,-500.0,0.00016438,2]
[354280916,1740393050595,-500.0,0.00016438,2]
[354280917,1740393050604,-500.0,0.00016438,2]
[354280918,1740393050615,-500.0,0.00016438,2]
[354280919,1740393050624,-500.0,0.00016438,2]
[354280920,1740393050633,-579.34,0.00016438,2]
[354280921,1740393050690,-500.0,0.00016438,2]
[354280922,1740393050699,-500.0,0.00016438,2]
[354280923,1740393050709,-500.0,0.00016438,2]
[354280924,1740393050718,-527.34355227,0.00016438,2]
[354280925,1740393050727,-656.83,0.00016438,2]
[354280926,1740393050735,-500.0,0.00016438,2]
[354280927,1740393050745,-229.613081,0.00016438,2]
[354280928,1740393050755,-229.613081,0.00016438,2]
[354280929,1740393050763,-500.0,0.00016438,2]
[354280930,1740393050773,-801.72,0.00016438,2]
[354280931,1740393050782,-500.0,0.00016438,2]
[354280932,1740393050791,-229.613081,0.00016438,2]
[354280933,1740393050801,-229.613081,0.00016438,2]
[354280934,1740393050810,-500.0,0.00016438,2]
[354280935,1740393050820,-500.0,0.00016438,2]
[354280936,1740393050831,-500.0,0.00016438,2]
[354280937,1740393050842,-778.26,0.00016438,2]
[354280938,1740393050852,-812.09,0.00016438,2]
[354280939,1740393050862,-563.47,0.00016438,2]
[354280940,1740393050872,-500.0,0.00016438,2]
[354280941,1740393050882,-500.0,0.00016438,2]
[354280942,1740393050891,-500.0,0.00016438,2]
[354280943,1740393050900,-500.0,0.00016438,2]
[354280944,1740393050912,-594.42,0.00016438,2]
[354280945,1740393050921,-500.0,0.00016438,2]
[354280946,1740393050930,-1017.59,0.00016438,2]
[354280947,1740393050939,-500.0,0.00016438,2]
[354280948,1740393050948,-395.48199372,0.00016438,2]
[354280949,1740393050957,-500.0,0.00016438,2]
[354280950,1740393050966,-500.0,0.00016438,2]
[354280951,1740393050975,-1173.0,0.00016438,2]
[354280952,1740393050984,-500.0,0.00016438,2]
[354280953,1740393050993,-500.0,0.00016438,2]
[354280954,1740393051003,-500.0,0.00016438,2]
[354280955,1740393051012,-500.0,0.00016438,2]
[354280956,1740393051021,-985.36,0.00016438,2]
[354280957,1740393051030,-500.0,0.00016438,2]
[354280958,1740393051040,-500.0,0.00016438,2]
[354280959,1740393051049,-714.1,0.00016438,2]
[354280960,1740393051058,-500.0,0.00016438,2]
[354280961,1740393051068,-500.0,0.00016438,2]
[354280962,1740393051077,-601.34,0.00016438,2]
[354280963,1740393051086,-500.0,0.00016438,2]
[354280964,1740393051097,-500.0,0.00016438,2]
[354280965,1740393051106,-500.0,0.00016438,2]
[354280966,1740393051115,-500.0,0.00016438,2]
[354280967,1740393051124,-1166.36,0.00016438,2]
[354280968,1740393051134,-500.0,0.00016438,2]
[354280969,1740393051142,-500.0,0.00016438,2]
[354280970,1740393051151,-500.0,0.00016438,2]
[354280971,1740393051160,-500.0,0.00016438,2]
[354280972,1740393051169,-500.0,0.00016438,2]
[354280973,1740393051178,-151.0,0.00016438,2]
[354280974,1740393051187,-244.257097,0.00016438,2]
[354280975,1740393051196,-655.58,0.00016438,2]
[354280976,1740393051205,-568.87,0.00016438,2]
[354280977,1740393051214,-500.0,0.00016438,2]
[354280978,1740393051223,-500.0,0.00016438,2]
[354280979,1740393051232,-500.0,0.00016438,2]
[354280980,1740393051241,-500.0,0.00016438,2]
[354280981,1740393051250,-500.0,0.00016438,2]
[354280982,1740393051259,-500.0,0.00016438,2]
[354280983,1740393051268,-500.0,0.00016438,2]
[354280984,1740393051277,-500.0,0.00016438,2]
[354280985,1740393051288,-500.0,0.00016438,2]
[354280986,1740393051297,-817.86,0.00016438,2]
[354280987,1740393051306,-500.0,0.00016438,2]
[354280988,1740393051315,-500.0,0.00016438,2]
[354280989,1740393051324,-153.63112,0.00016438,2]
[354280990,1740393051333,-502.75882379,0.00016438,2]
[354280991,1740393051342,-500.0,0.00016438,2]
[354280992,1740393051351,-500.0,0.00016438,2]
[354280993,1740393051360,-554.61,0.00016438,2]
[354280994,1740393051368,-500.0,0.00016438,2]
[354280995,1740393051378,-607.13,0.00016438,2]
[354280996,1740393051386,-299.279106,0.00016438,2]
[354280997,1740393051395,-500.0,0.00016438,2]
[354280998,1740393051404,-587.42,0.00016438,2]
[354280999,1740393051413,-500.0,0.00016438,2]
[354281000,1740393051422,-500.0,0.00016438,2]
[354281001,1740393051430,-500.67267469,0.00016438,2]
[354281002,1740393051439,-500.0,0.00016438,2]
[354281003,1740393051449,-500.0,0.00016438,2]
[354281004,1740393051458,-504.70844293,0.00016438,2]
[354281005,1740393051467,-500.0,0.00016438,2]
[354281006,1740393051476,-500.0,0.00016438,2]
[354281007,1740393051485,-500.0,0.00016438,2]
[354281008,1740393051494,-976.63,0.00016438,2]
[354281009,1740393051503,-500.0,0.00016438,2]
[354281010,1740393051512,-503.6225754,0.00016438,2]
[354281011,1740393051521,-412.24662628,0.00016438,2]
[354281012,1740393051529,-500.0,0.00016438,2]
[354281013,1740393051539,-500.0,0.00016438,2]
[354281014,1740393051549,-327.093108,0.00016438,2]
[354281015,1740393051558,-758.07,0.00016438,2]
[354281016,1740393051567,-500.0,0.00016438,2]
[354281017,1740393051576,-500.0,0.00016438,2]
[354281018,1740393051585,-912.3,0.00016438,2]
[354281019,1740393051595,-500.0,0.00016438,2]
[354281020,1740393051604,-500.0,0.00016438,2]
[354281021,1740393051614,-500.0,0.00016438,2]
[354281022,1740393051623,-500.0,0.00016438,2]
[354281023,1740393051632,-500.0,0.00016438,2]
[354281024,1740393051641,-500.0,0.00016438,2]
[354281025,1740393051651,-500.0,0.00016438,2]
[354281026,1740393051660,-500.0,0.00016438,2]
[354281027,1740393051669,-500.0,0.00016438,2]
[354281028,1740393051678,-500.0,0.00016438,2]
[354281029,1740393051687,-500.0,0.00016438,2]
[354281030,1740393051696,-500.0,0.00016438,2]
[354281031,1740393051705,-236.03,0.00016438,2]
[354281032,1740393051714,-966.44,0.00016438,2]
[354281033,1740393051723,-500.0,0.00016438,2]
[354281034,1740393051732,-500.0,0.00016438,2]
[354281035,1740393051741,-500.0,0.00016438,2]
[354281036,1740393051749,-503.42312354,0.00016438,2]
[354281037,1740393051758,-571.99,0.00016438,2]
[354281038,1740393051767,-500.0,0.00016438,2]
[354281039,1740393051776,-500.0,0.00016438,2]
[354281040,1740393051786,-160.368063,0.00016438,2]
[354281041,1740393051795,-583.89,0.00016438,2]
[354281042,1740393051804,-160.368063,0.00016438,2]
[354281043,1740393051813,-508.91,0.00016438,2]
[354281044,1740393051822,-500.0,0.00016438,2]
[354281045,1740393051834,-500.0,0.00016438,2]
[354281046,1740393051844,-500.0,0.00016438,2]
[354281047,1740393051853,-500.0,0.00016438,2]
[354281048,1740393051862,-500.0,0.00016438,2]
[354281049,1740393051873,-160.368063,0.00016438,2]
[354281050,1740393051882,-160.368063,0.00016438,2]
[354281051,1740393051891,-500.0,0.00016438,2]
[354281052,1740393051901,-500.0,0.00016438,2]
[354281053,1740393051910,-500.0,0.00016438,2]
[354281054,1740393051919,-825.69,0.00016438,2]
[354281055,1740393051928,-500.0,0.00016438,2]
[354281056,1740393051938,-342.50100463,0.00016438,2]
[354281057,1740393051947,-161.063744,0.00016438,2]
[354281058,1740393051956,-151.0,0.00016438,2]
[354281059,1740393051966,-151.0,0.00016438,2]
[354281060,1740393051976,-793.11,0.00016438,2]
[354281061,1740393051984,-568.54,0.00016438,2]
[354281062,1740393051994,-500.0,0.00016438,2]
[354281063,1740393052003,-200.999577,0.00016438,2]
[354281064,1740393052012,-500.0,0.00016438,2]
[354281065,1740393052021,-688.09,0.00016438,2]
[354281066,1740393052030,-500.0,0.00016438,2]
[354281067,1740393052044,-500.0,0.00016438,2]
[354281068,1740393052053,-500.0,0.00016438,2]
[354281069,1740393052062,-500.0,0.00016438,2]
[354281070,1740393052071,-827.28,0.00016438,2]
[354281071,1740393052080,-500.0,0.00016438,2]
[354281072,1740393052089,-500.0,0.00016438,2]
[354281073,1740393052098,-500.0,0.00016438,2]
[354281074,1740393052107,-500.0,0.00016438,2]
[354281075,1740393052115,-500.0,0.00016438,2]
[354281076,1740393052124,-500.0,0.00016438,2]
[354281077,1740393052133,-500.0,0.00016438,2]
[354281078,1740393052142,-500.0,0.00016438,2]
[354281079,1740393052151,-500.0,0.00016438,2]
[354281080,1740393052160,-500.0,0.00016438,2]
[354281081,1740393052169,-500.0,0.00016438,2]
[354281082,1740393052178,-501.11,0.00016438,2]
[354281083,1740393052188,-571.55,0.00016438,2]
[354281084,1740393052197,-500.0,0.00016438,2]
[354281085,1740393052206,-500.0,0.00016438,2]
[354281086,1740393052215,-590.2,0.00016438,2]
[354281087,1740393052224,-500.0,0.00016438,2]
[354281088,1740393052233,-500.0,0.00016438,2]
[354281089,1740393052242,-500.0,0.00016438,2]
[354281090,1740393052251,-500.0,0.00016438,2]
[354281091,1740393052260,-500.0,0.00016438,2]
[354281092,1740393052269,-500.0,0.00016438,2]
[354281093,1740393052278,-500.0,0.00016438,2]
[354281094,1740393052290,-500.0,0.00016438,2]
[354281095,1740393052299,-500.0,0.00016438,2]
[354281096,1740393052309,-502.18235436,0.00016438,2]
[354281097,1740393052318,-500.0,0.00016438,2]
[354281098,1740393052327,-500.0,0.00016438,2]
[354281099,1740393052336,-500.0,0.00016438,2]
[354281100,1740393052345,-500.0,0.00016438,2]
[354281101,1740393052355,-507.25566342,0.00016438,2]
[354281102,1740393052364,-500.0,0.00016438,2]
[354281103,1740393052373,-500.0,0.00016438,2]
[354281104,1740393052382,-500.0,0.00016438,2]
[354281105,1740393052391,-267.08744531,0.00016438,2]
[354281106,1740393052401,-500.0,0.00016438,2]
[354281107,1740393052410,-500.0,0.00016438,2]
[354281108,1740393052419,-500.0,0.00016438,2]
[354281109,1740393052428,-500.0,0.00016438,2]
[354281110,1740393052437,-500.0,0.00016438,2]
[354281111,1740393052447,-151.18647213,0.00016438,2]
[354281112,1740393052456,-500.0,0.00016438,2]
[354281113,1740393052465,-500.0,0.00016438,2]
[354281114,1740393052474,-500.0,0.00016438,2]
[354281115,1740393052483,-151.0,0.00016438,2]
[354281116,1740393052491,-500.0,0.00016438,2]
[354281117,1740393052501,-500.0,0.00016438,2]
[354281118,1740393052509,-151.0,0.00016438,2]
[354281119,1740393052518,-500.0,0.00016438,2]
[354281120,1740393052527,-155.97966514,0.00016438,2]
[354281121,1740393052537,-500.0,0.00016438,2]
[354281122,1740393052547,-151.0,0.00016438,2]
[354281123,1740393052556,-500.0,0.00016438,2]
[354281124,1740393052565,-500.0,0.00016438,2]
[354281125,1740393052575,-151.0,0.00016438,2]
[354281126,1740393052584,-500.0,0.00016438,2]
[354281127,1740393052593,-501.60997879,0.00016438,2]
[354281128,1740393052603,-500.0,0.00016438,2]
[354281129,1740393052612,-500.0,0.00016438,2]
[354281130,1740393052621,-490.7352723,0.00016438,2]
[354281131,1740393052630,-500.0,0.00016438,2]
[354281132,1740393052639,-500.0,0.00016438,2]
[354281133,1740393052648,-500.0,0.00016438,2]
[354281134,1740393052657,-500.0,0.00016438,2]
[354281135,1740393052666,-865.78,0.00016438,2]
[354281136,1740393052675,-500.0,0.00016438,2]
[354281137,1740393052684,-504.48264184,0.00016438,2]
[354281138,1740393052693,-792.11,0.00016438,2]
[354281139,1740393052702,-500.0,0.00016438,2]
[354281140,1740393052711,-500.0,0.00016438,2]
[354281141,1740393052720,-500.0,0.00016438,2]
[354281142,1740393052728,-500.0,0.00016438,2]
[354281143,1740393052737,-151.0,0.00016438,2]
[354281144,1740393052746,-301.062953,0.00016438,2]
[354281145,1740393052756,-500.0,0.00016438,2]
[354281146,1740393052765,-500.0,0.00016438,2]
[354281147,1740393052774,-502.07,0.00016438,2]
[354281148,1740393052783,-500.0,0.00016438,2]
[354281149,1740393052793,-500.0,0.00016438,2]
[354281150,1740393052802,-732.07,0.00016438,2]
[354281151,1740393052811,-500.0,0.00016438,2]
[354281152,1740393052820,-536.67,0.00016438,2]
[354281153,1740393052829,-512.36778261,0.00016438,2]
[354281154,1740393052843,-772.46,0.00016438,2]
[354281155,1740393052853,-510.6673876,0.00016438,2]
[354281156,1740393052863,-500.0,0.00016438,2]
[354281157,1740393052873,-994.92,0.00016438,2]
[354281158,1740393052882,-500.0,0.00016438,2]
[354281159,1740393052891,-505.51558779,0.00016438,2]
[354281160,1740393052900,-151.0,0.00016438,2]
[354281161,1740393052911,-151.0,0.00016438,2]
[354281162,1740393052921,-500.0,0.00016438,2]
[354281163,1740393052930,-719.27,0.00016438,2]
[354281164,1740393052939,-500.0,0.00016438,2]
[354281165,1740393052949,-576.942674,0.00016438,2]
[354281166,1740393052958,-500.0,0.00016438,2]
[354281167,1740393052967,-576.942674,0.00016438,2]
[354281168,1740393052976,-500.0,0.00016438,2]
[354281169,1740393052985,-732.94,0.00016438,2]
[354281170,1740393052995,-500.0,0.00016438,2]
[354281171,1740393053004,-576.942674,0.00016438,2]
[354281172,1740393053013,-576.942674,0.00016438,2]
[354281173,1740393053022,-500.0,0.00016438,2]
[354281174,1740393053031,-894.91,0.00016438,2]
[354281175,1740393053041,-231.66108,0.00016438,2]
[354281176,1740393053049,-835.59,0.00016438,2]
[354281177,1740393053058,-505.71638121,0.00016438,2]
[354281178,1740393053067,-505.34653792,0.00016438,2]
[354281179,1740393053076,-1034.89,0.00016438,2]
[354281180,1740393053085,-500.0,0.00016438,2]
[354281181,1740393053094,-500.0,0.00016438,2]
[354281182,1740393053103,-1083.32,0.00016438,2]
[354281183,1740393053113,-500.0,0.00016438,2]
[354281184,1740393053122,-500.0,0.00016438,2]
[354281185,1740393053131,-500.0,0.00016438,2]
[354281186,1740393053140,-152.863559,0.00016438,2]
[354281187,1740393053150,-649.75,0.00016438,2]
[354281188,1740393053159,-500.0,0.00016438,2]
[354281189,1740393053167,-500.0,0.00016438,2]
[354281190,1740393053177,-500.0,0.00016438,2]
[354281191,1740393053187,-547.93,0.00016438,2]
[354281192,1740393053196,-500.0,0.00016438,2]
[354281193,1740393053206,-500.0,0.00016438,2]
[354281194,1740393053215,-500.0,0.00016438,2]
[354281195,1740393053224,-500.71634468,0.00016438,2]
[354281196,1740393053233,-500.0,0.00016438,2]
[354281197,1740393053242,-500.0,0.00016438,2]
[354281198,1740393053251,-500.0,0.00016438,2]
[354281199,1740393053261,-500.0,0.00016438,2]
[354281200,1740393053270,-151.0,0.00016438,2]
[354281201,1740393053279,-500.0,0.00016438,2]
[354281202,1740393053290,-151.0,0.00016438,2]
[354281203,1740393053300,-151.0,0.00016438,2]
[354281204,1740393053309,-689.58,0.00016438,2]
[354281205,1740393053319,-413.78606353,0.00016438,2]
[354281206,1740393053329,-685.53,0.00016438,2]
[354281207,1740393053338,-500.0,0.00016438,2]
[354281208,1740393053347,-500.0,0.00016438,2]
[354281209,1740393053357,-430.45168224,0.00016438,2]
[354281210,1740393053366,-508.80303639,0.00016438,2]
[354281211,1740393053375,-505.40686938,0.00016438,2]
[354281212,1740393053384,-500.0,0.00016438,2]
[354281213,1740393053394,-500.0,0.00016438,2]
[354281214,1740393053403,-507.07566816,0.00016438,2]
[354281215,1740393053412,-500.0,0.00016438,2]
[354281216,1740393053422,-151.0,0.00016438,2]
[354281217,1740393053431,-151.0,0.00016438,2]
[354281218,1740393053440,-151.0,0.00016438,2]
[354281219,1740393053449,-500.0,0.00016438,2]
[354281220,1740393053459,-500.0,0.00016438,2]
[354281221,1740393053468,-500.0,0.00016438,2]
[354281222,1740393053477,-500.0,0.00016438,2]
[354281223,1740393053487,-500.0,0.00016438,2]
[354281224,1740393053496,-193.81001709,0.00016438,2]
[354281225,1740393053505,-502.89959521,0.00016438,2]
[354281226,1740393053514,-500.0,0.00016438,2]
[354281227,1740393053523,-500.0,0.00016438,2]
[354281228,1740393053532,-151.0,0.00016438,2]
[354281229,1740393053542,-500.0,0.00016438,2]
[354281230,1740393053551,-151.0,0.00016438,2]
[354281231,1740393053560,-151.0,0.00016438,2]
[354281232,1740393053570,-500.0,0.00016438,2]
[354281233,1740393053579,-500.0,0.00016438,2]
[354281234,1740393053588,-596.16,0.00016438,2]
[354281235,1740393053598,-770.75,0.00016438,2]
[354281236,1740393053608,-500.0,0.00016438,2]
[354281237,1740393053617,-1066.15,0.00016438,2]
[354281238,1740393053627,-500.0,0.00016438,2]
[354281239,1740393053637,-939.56,0.00016438,2]
[354281240,1740393053647,-535.53,0.00016438,2]
[354281241,1740393053657,-500.0,0.00016438,2]
[354281242,1740393053666,-500.0,0.00016438,2]
[354281243,1740393053675,-1713.16,0.00016438,2]
[354281244,1740393053685,-999.11,0.00016438,2]
[354281245,1740393053695,-545.3,0.00016438,2]
[354281246,1740393053704,-510.73450395,0.00016438,2]
[354281247,1740393053713,-504.38845596,0.00016438,2]
[354281248,1740393053722,-500.0,0.00016438,2]
[354281249,1740393053732,-852.89,0.00016438,2]
[354281250,1740393053741,-852.89,0.00016438,2]
[354281251,1740393053752,-852.89,0.00016438,2]
[354281252,1740393053762,-852.89,0.00016438,2]
[354281253,1740393053772,-852.89,0.00016438,2]
[354281254,1740393053782,-852.89,0.00016438,2]
[354281255,1740393053795,-852.89,0.00016438,2]
[354281256,1740393053806,-505.57353159,0.00016438,2]
[354281257,1740393053816,-852.89,0.00016438,2]
[354281258,1740393053826,-852.89,0.00016438,2]
[354281259,1740393053839,-500.0,0.00016438,2]
[354281260,1740393053849,-852.89,0.00016438,2]
[354281261,1740393053858,-852.89,0.00016438,2]
[354281262,1740393053868,-507.88299757,0.00016438,2]
[354281263,1740393053878,-852.89,0.00016438,2]
[354281264,1740393053888,-852.89,0.00016438,2]
[354281265,1740393053898,-852.89,0.00016438,2]
[354281266,1740393053909,-852.89,0.00016438,2]
[354281267,1740393053918,-852.89,0.00016438,2]
[354281268,1740393053928,-852.89,0.00016438,2]
[354281269,1740393053937,-500.0,0.00016438,2]
[354281270,1740393053946,-852.89,0.00016438,2]
[354281271,1740393053955,-852.89,0.00016438,2]
[354281272,1740393053965,-852.89,0.00016438,2]
[354281273,1740393053974,-852.89,0.00016438,2]
[354281274,1740393053984,-988.44,0.00016438,2]
[354281275,1740393053993,-852.89,0.00016438,2]
[354281276,1740393054003,-852.89,0.00016438,2]
[354281277,1740393054013,-853.00839099,0.00016438,2]
[354281278,1740393054023,-205.106864,0.00016438,2]
[354281279,1740393054032,-1914.59,0.00016438,2]
[354281280,1740393054044,-205.106864,0.00016438,2]
[354281281,1740393054054,-1771.19,0.00016438,2]
[354281282,1740393054063,-555.7216344,0.00016438,2]
[354281283,1740393054073,-205.106864,0.00016438,2]
[354281284,1740393054082,-503.09438083,0.00016438,2]
[354281285,1740393054092,-151.0,0.00016438,2]
[354281286,1740393054101,-151.0,0.00016438,2]
[354281287,1740393054111,-151.0,0.00016438,2]
[354281288,1740393054121,-500.0,0.00016438,2]
[354281289,1740393054130,-205.106864,0.00016438,2]
[354281290,1740393054140,-521.38072708,0.00016438,2]
[354281291,1740393054150,-205.106864,0.00016438,2]
[354281292,1740393054159,-205.106864,0.00016438,2]
[354281293,1740393054168,-507.56511952,0.00016438,2]
[354281294,1740393054178,-151.0,0.00016438,2]
[354281295,1740393054188,-151.0,0.00016438,2]
[354281296,1740393054198,-151.0,0.00016438,2]
[354281297,1740393054207,-500.0,0.00016438,2]
[354281298,1740393054217,-2047.21,0.00016438,2]
[354281299,1740393054226,-4053.22,0.00016438,2]
[354281300,1740393054235,-857.92,0.00016438,2]
[354281301,1740393054245,-1114.15,0.00016438,2]
[354281302,1740393054254,-507.52,0.00016438,2]
[354281303,1740393054263,-500.0,0.00016438,2]
[354281304,1740393054273,-503.87858684,0.00016438,2]
[354281305,1740393054282,-501.0119153,0.00016438,2]
[354281306,1740393054294,-760.3,0.00016438,2]
[354281307,1740393054303,-151.0,0.00016438,2]
[354281308,1740393054312,-151.0,0.00016438,2]
[354281309,1740393054322,-151.769202,0.00016438,2]
[354281310,1740393054331,-164.410286,0.00016438,2]
[354281311,1740393054340,-152.82972,0.00016438,2]
[354281312,1740393054350,-1134.98,0.00016438,2]
[354281313,1740393054359,-164.410286,0.00016438,2]
[354281314,1740393054368,-164.410286,0.00016438,2]
[354281315,1740393054378,-1537.05,0.00016438,2]
[354281316,1740393054387,-500.0,0.00016438,2]
[354281317,1740393054396,-164.410286,0.00016438,2]
[354281318,1740393054405,-164.410286,0.00016438,2]
[354281319,1740393054415,-164.410286,0.00016438,2]
[354281320,1740393054425,-500.0,0.00016438,2]
[354281321,1740393054434,-242.118806,0.00016438,2]
[354281322,1740393054443,-242.118806,0.00016438,2]
[354281323,1740393054452,-2359.95,0.00016438,2]
[354281324,1740393054462,-500.0,0.00016438,2]
[354281325,1740393054471,-1103.35,0.00016438,2]
[354281326,1740393054481,-242.118806,0.00016438,2]
[354281327,1740393054490,-151.0,0.00016438,2]
[354281328,1740393054499,-151.0,0.00016438,2]
[354281329,1740393054509,-151.0,0.00016438,2]
[354281330,1740393054518,-500.0,0.00016438,2]
[354281331,1740393054528,-242.118806,0.00016438,2]
[354281332,1740393054537,-242.118806,0.00016438,2]
[354281333,1740393054547,-4184.04,0.00016438,2]
[354281334,1740393054556,-242.118806,0.00016438,2]
[354281335,1740393054566,-1851.33,0.00016438,2]
[354281336,1740393054576,-500.0,0.00016438,2]
[354281337,1740393054586,-2354.25,0.00016438,2]
[354281338,1740393054595,-613.1,0.00016438,2]
[354281339,1740393054606,-971.17,0.00016438,2]
[354281340,1740393054616,-3563.69,0.00016438,2]
[354281341,1740393054625,-273.61063057,0.00016438,2]
[354281342,1740393054635,-2009.96,0.00016438,2]
[354281343,1740393054645,-500.0,0.00016438,2]
[354281344,1740393054655,-500.0,0.00016438,2]
[354281345,1740393054665,-501.5552183,0.00016438,2]
[354281346,1740393054675,-500.0,0.00016438,2]
[354281347,1740393054684,-1543.4,0.00016438,2]
[354281348,1740393054694,-533.77,0.00016438,2]
[354281349,1740393054704,-633.74,0.00016438,2]
[354281350,1740393054714,-2242.87,0.00016438,2]
[354281351,1740393054723,-1803.65,0.00016438,2]
[354281352,1740393054733,-500.0,0.00016438,2]
[354281353,1740393054743,-500.0,0.00016438,2]
[354281354,1740393054753,-500.0,0.00016438,2]
[354281355,1740393054763,-500.0,0.00016438,2]
[354281356,1740393054772,-2187.68,0.00016438,2]
[354281357,1740393054782,-500.0,0.00016438,2]
[354281358,1740393054793,-728.65,0.00016438,2]
[354281359,1740393054803,-639.73377444,0.00016438,2]
[354281360,1740393054813,-6441.69,0.00016438,2]
[354281361,1740393054823,-530.59,0.00016438,2]
[354281362,1740393054834,-608.44500949,0.00016438,2]
[354281363,1740393054845,-552.52,0.00016438,2]
[354281364,1740393054855,-500.0,0.00016438,2]
[354281365,1740393054865,-500.0,0.00016438,2]
[354281366,1740393054875,-1823.33,0.00016438,2]
[354281367,1740393054885,-580.19,0.00016438,2]
[354281368,1740393054895,-2359.28,0.00016438,2]
[354281369,1740393054906,-510.07132018,0.00016438,2]
[354281370,1740393054916,-500.0,0.00016438,2]
[354281371,1740393054926,-151.0,0.00016438,2]
[354281372,1740393054936,-151.676017,0.00016438,2]
[354281373,1740393054946,-151.0,0.00016438,2]
[354281374,1740393054956,-151.0,0.00016438,2]
[354281375,1740393054966,-500.0,0.00016438,2]
[354281376,1740393054976,-500.0,0.00016438,2]
[354281377,1740393054986,-6310.46,0.00016438,2]
[354281378,1740393054995,-1453.83,0.00016438,2]
[354281379,1740393055005,-1754.56,0.00016438,2]
[354281380,1740393055015,-151.0,0.00016438,2]
[354281381,1740393055024,-504.88419051,0.00016438,2]
[354281382,1740393055033,-151.0,0.00016438,2]
[354281383,1740393055044,-151.0,0.00016438,2]
[354281384,1740393055054,-500.0,0.00016438,2]
[354281385,1740393055065,-2395.13,0.00016438,2]
[354281386,1740393055075,-151.0,0.00016438,2]
[354281387,1740393055085,-151.0,0.00016438,2]
[354281388,1740393055095,-297.351241,0.00016438,2]
[354281389,1740393055104,-500.0,0.00016438,2]
[354281390,1740393055114,-500.0,0.00016438,2]
[354281391,1740393055124,-13481.6,0.00016438,2]
[354281392,1740393055133,-13481.6,0.00016438,2]
[354281393,1740393055142,-13481.6,0.00016438,2]
[354281394,1740393055152,-500.0,0.00016438,2]
[354281395,1740393055161,-13481.6,0.00016438,2]
[354281396,1740393055170,-13481.6,0.00016438,2]
[354281397,1740393055180,-13481.6,0.00016438,2]
[354281398,1740393055190,-13481.6,0.00016438,2]
[354281399,1740393055199,-13481.6,0.00016438,2]
[354281400,1740393055208,-13481.6,0.00016438,2]
[354281401,1740393055217,-500.0,0.00016438,2]
[354281402,1740393055227,-13481.6,0.00016438,2]
[354281403,1740393055237,-13481.6,0.00016438,2]
[354281404,1740393055246,-1530.26,0.00016438,2]
[354281405,1740393055255,-13481.6,0.00016438,2]
[354281406,1740393055265,-1729.98,0.00016438,2]
[354281407,1740393055274,-13481.6,0.00016438,2]